bitfinex/quotes_ETHUSD_20250724
["timestamp","ask_amount","ask_price","bid_price","bid_amount"]
[1753318957833,3.21065713,3651.6,3651.5,0.001]
[1753318958039,8.28305713,3651.6,3651.5,0.001]
[1753318958221,8.24882557,3651.6,3651.5,0.001]
[1753318958424,8.19882557,3651.6,3651.5,0.001]
[1753318958616,5.4593,3651.6,3651.5,0.001]
[1753318958816,6.00939353,3651.6,3651.5,0.001]
[1753318959017,5.4593,3651.6,3651.5,0.001]
[1753318959429,11.74782557,3651.6,3651.5,0.001]
[1753318961823,26.24782557,3651.6,3651.5,0.001]
[1753318962570,21.41382557,3651.6,3651.5,0.001]
[1753318962729,4.1753,3651.6,3651.5,0.001]
[1753318962929,8.4563,3651.6,3651.5,0.001]
[1753318963670,4.1753,3651.6,3651.5,0.001]
[1753318963839,7.281,3651.6,3651.5,0.001]
[1753318965273,7.7096,3651.6,3651.5,0.001]
[1753318966762,7.277,3651.6,3651.5,0.001]
[1753318966978,3.0,3651.6,3651.5,0.001]
[1753318967153,7.277,3651.6,3651.5,0.001]
[1753318967741,4.277,3651.6,3651.5,2.73960057]
[1753318967970,4.277,3651.6,3651.5,0.001]
[1753318968443,4.277,3651.6,3651.5,2.73960057]
[1753318968643,0.1368,3651.7,3651.5,0.818]
[1753318968875,4.276,3651.6,3651.5,3.55660057]
[1753318969677,4.276,3651.6,3651.5,0.001]
[1753318970779,4.7046,3651.6,3651.5,0.001]
[1753318971748,7.44312557,3651.6,3651.5,0.001]
[1753318971951,4.7046,3651.6,3651.5,0.001]
[1753318972262,10.44312557,3651.6,3651.5,0.001]
[1753318980193,10.44512557,3651.6,3651.5,0.001]
[1753318980908,10.99512557,3651.6,3651.5,0.001]
[1753318981063,11.75232557,3651.6,3651.5,0.001]
[1753318981260,56.25232557,3651.6,3651.5,0.001]
[1753318981487,56.25232557,3651.6,3651.5,1e-08]
[1753318981681,56.84362303,3651.6,3651.5,1e-08]
[1753318984099,26.84362303,3651.6,3651.5,1e-08]
[1753318984266,56.84362303,3651.6,3651.5,1e-08]
[1753318989292,56.25232557,3651.6,3651.5,1e-08]
[1753318989500,56.84239122,3651.6,3651.5,1e-08]
[1753318991687,57.0468716,3651.6,3651.5,1e-08]
[1753318998183,57.78440508,3651.6,3651.5,1e-08]
[1753318999718,57.0468716,3651.6,3651.5,1e-08]
[1753319000182,57.78378486,3651.6,3651.5,1e-08]
[1753319000381,57.0468716,3651.6,3651.5,1e-08]
[1753319001998,57.0148716,3651.6,3651.5,1e-08]
[1753319003302,57.7520777,3651.6,3651.5,1e-08]
[1753319004026,27.7520777,3651.6,3651.5,1e-08]
[1753319004229,57.7520777,3651.6,3651.5,1e-08]
[1753319005227,56.25539122,3651.6,3651.5,1e-08]
[1753319005589,56.80539122,3651.6,3651.5,1e-08]
[1753319006617,51.25919122,3651.6,3651.5,1e-08]
[1753319006815,25.49819122,3651.6,3651.5,1e-08]
[1753319007329,26.04819122,3651.6,3651.5,1e-08]
[1753319008093,25.61959122,3651.6,3651.5,1e-08]
[1753319008290,22.06859122,3651.6,3651.5,1e-08]
[1753319008490,7.56859122,3651.6,3651.5,0.78730001]
[1753319008818,9.97852557,3651.6,3651.5,0.93680001]
[1753319009022,25.02852557,3651.6,3651.5,0.93680001]
[1753319009220,24.47852557,3651.6,3651.5,0.93680001]
[1753319009396,9.97852557,3651.6,3651.5,0.93680001]
[1753319010231,0.002,3651.6,3651.5,0.78730001]
[1753319010434,4.24,3651.6,3651.5,0.78730001]
[1753319010608,7.24,3651.6,3651.5,0.93680001]
[1753319014295,7.24,3651.6,3651.5,0.78730001]
[1753319014904,9.97852557,3651.6,3651.5,0.78730001]
[1753319021858,9.97852557,3651.6,3651.5,1e-08]
[1753319023032,10.99512557,3651.6,3651.5,1e-08]
[1753319025961,25.49512557,3651.6,3651.5,1e-08]
[1753319026625,3.002,3651.6,3651.5,1e-08]
[1753319027040,7.231,3651.6,3651.5,1e-08]
[1753319027455,3.002,3651.6,3651.5,1e-08]
[1753319027725,7.231,3651.6,3651.5,1e-08]
[1753319028461,3.002,3651.6,3651.5,1e-08]
[1753319028639,7.231,3651.6,3651.5,0.76560001]
[1753319029561,3.002,3651.6,3651.5,0.76560001]
[1753319029724,3.002,3651.6,3651.5,0.91510001]
[1753319030059,7.231,3651.6,3651.5,0.91510001]
[1753319031362,7.231,3651.6,3651.5,0.76560001]
[1753319031825,3.002,3651.6,3651.5,0.76560001]
[1753319032025,7.231,3651.6,3651.5,0.76560001]
[1753319032924,10.98612557,3651.6,3651.5,1e-08]
[1753319035237,25.48612557,3651.6,3651.5,1e-08]
[1753319042800,56.90709283,3651.6,3651.5,1e-08]
[1753319042948,26.90709283,3651.6,3651.5,1e-08]
[1753319045167,25.01952557,3651.6,3651.5,1e-08]
[1753319045367,25.48612557,3651.6,3651.5,1e-08]
[1753319051210,56.20022557,3651.6,3651.5,1e-08]
[1753319057212,56.79152596,3651.6,3651.5,1e-08]
[1753319059123,60.03316809,3651.6,3651.5,1e-08]
[1753319059776,61.01538746,3651.6,3651.5,1e-08]
[1753319060373,60.03316809,3651.6,3651.5,1e-08]
[1753319061634,68.15044947,3651.6,3651.5,1e-08]
[1753319064091,65.54490935,3651.6,3651.5,1e-08]
[1753319064296,64.56052596,3651.6,3651.5,1e-08]
[1753319065145,59.78252596,3651.6,3651.5,1e-08]
[1753319065302,64.56052596,3651.6,3651.5,1e-08]
[1753319066100,64.56252596,3651.6,3651.5,1e-08]
[1753319067750,71.14552596,3651.6,3651.5,1e-08]
[1753319068094,66.91752596,3651.6,3651.5,1e-08]
[1753319068310,71.14552596,3651.6,3651.5,1e-08]
[1753319069433,66.91752596,3651.6,3651.5,1e-08]
[1753319069733,71.14552596,3651.6,3651.5,1e-08]
[1753319071530,74.38716809,3651.6,3651.5,1e-08]
[1753319071834,75.37155148,3651.6,3651.5,1e-08]
[1753319074517,1.3254,3651.3,3650.8,0.001]
[1753319074852,36.28905064,3650.9,3650.8,0.001]
[1753319075148,41.10735103,3650.9,3650.8,0.001]
[1753319075516,41.58225103,3650.9,3650.8,1e-08]
[1753319076212,41.10735103,3650.9,3650.8,1e-08]
[1753319076517,40.51605064,3650.9,3650.8,1e-08]
[1753319077521,36.28905064,3650.9,3650.8,1e-08]
[1753319077723,40.51605064,3650.9,3650.8,1e-08]
[1753319078038,36.28905064,3650.9,3650.8,1e-08]
[1753319078240,6.28905064,3650.9,3650.8,1e-08]
[1753319078541,10.51605064,3650.9,3650.8,1e-08]
[1753319078931,6.28905064,3650.9,3650.8,1e-08]
[1753319079137,10.51605064,3650.9,3650.8,1e-08]
[1753319082151,25.01605064,3650.9,3650.8,1e-08]
[1753319082722,20.78905064,3650.9,3650.8,1e-08]
[1753319082918,25.01605064,3650.9,3650.8,1e-08]
[1753319085225,10.51605064,3650.9,3650.8,1e-08]
[1753319085877,25.01605064,3650.9,3650.8,1e-08]
[1753319086231,25.6074646,3650.9,3650.8,1e-08]
[1753319087162,56.0556646,3650.9,3650.8,1e-08]
[1753319088846,51.3804646,3650.9,3650.8,1e-08]
[1753319089058,55.6064646,3650.9,3650.8,1e-08]
[1753319089730,25.6064646,3650.9,3650.8,1e-08]
[1753319091137,26.0546646,3650.9,3650.8,1e-08]
[1753319091466,56.0546646,3650.9,3650.8,1e-08]
[1753319091868,56.8690646,3650.9,3650.8,1e-08]
[1753319093336,57.60910244,3650.9,3650.8,1e-08]
[1753319094269,56.8690646,3650.9,3650.8,1e-08]
[1753319095740,35.73942581,3650.4,3650.3,0.001]
[1753319095938,41.37393977,3650.4,3650.3,0.001]
[1753319096158,42.37213977,3650.4,3650.3,0.001]
[1753319096360,56.87213977,3650.4,3650.3,0.001]
[1753319102280,36.28965096,3650.1,3649.6,0.001]
[1753319102582,41.24286492,3650.1,3649.6,0.001]
[1753319102881,56.98826492,3650.1,3649.6,0.001]
[1753319104384,52.31506492,3650.1,3649.6,0.001]
[1753319104584,22.45221396,3650.1,3649.7,0.7842]
[1753319104782,0.1368,3650.1,3650.0,0.1505]
[1753319104948,4.3608,3650.1,3650.0,3.67442602]
[1753319105279,0.1368,3650.1,3650.0,4.3158628]
[1753319105449,4.3608,3650.1,3650.0,4.3158628]
[1753319105651,7.3608,3650.1,3650.0,4.3158628]
[1753319105860,0.1368,3650.1,3650.0,7.55750493]
[1753319106059,6.584,3650.9,3650.8,3.55052567]
[1753319106259,6.584,3650.9,3650.8,3.70002567]
[1753319106458,10.808,3650.9,3650.8,3.70002567]
[1753319106665,13.808,3650.9,3650.8,3.70002567]
[1753319107075,13.808,3650.9,3650.8,0.9609]
[1753319108959,13.808,3650.9,3650.8,1.33091557]
[1753319109192,13.808,3650.9,3650.8,4.07004124]
[1753319109957,13.808,3650.9,3650.8,4.07104124]
[1753319110161,7.224,3650.9,3650.8,1.33191557]
[1753319110363,7.226,3650.9,3650.8,0.9619]
[1753319112696,7.226,3650.9,3650.8,0.960135]
[1753319114687,7.226,3650.9,3650.8,0.810635]
[1753319115002,7.226,3650.9,3650.8,0.001]
[1753319117000,7.776,3650.9,3650.8,0.001]
[1753319117254,10.94525064,3650.9,3650.8,0.001]
[1753319119186,7.776,3650.9,3650.8,0.001]
[1753319119414,7.776,3650.9,3650.8,0.7915]
[1753319119625,10.51505064,3650.9,3650.8,0.7915]
[1753319120423,7.224,3650.9,3650.8,0.7915]
[1753319121715,3.002,3650.9,3650.8,0.7915]
[1753319122023,7.223,3650.9,3650.8,0.7915]
[1753319124843,7.223,3650.9,3650.8,0.001]
[1753319124844,10.94225064,3650.9,3650.8,0.001]
[1753319126002,25.44225064,3650.9,3650.8,0.001]
[1753319129030,10.94225064,3650.9,3650.8,0.001]
[1753319129535,25.44225064,3650.9,3650.8,0.001]
[1753319130434,21.22125064,3650.9,3650.8,0.001]
[1753319130618,25.44125064,3650.9,3650.8,0.001]
[1753319132441,10.94125064,3650.9,3650.8,0.001]
[1753319132615,40.94125064,3650.9,3650.8,0.001]
[1753319133025,56.20075064,3650.9,3650.8,0.001]
[1753319133222,56.79134343,3650.9,3650.8,0.001]
[1753319140229,26.79134343,3650.9,3650.8,0.001]
[1753319140750,56.79134343,3650.9,3650.8,0.001]
[1753319142778,3.28965096,3650.1,3650.0,0.001]
[1753319143094,10.50865096,3650.1,3650.0,0.001]
[1753319143381,10.96095096,3650.1,3650.0,0.001]
[1753319144140,25.46095096,3650.1,3650.0,0.001]
[1753319144437,17.5,3650.1,3650.0,0.001]
[1753319144746,7.219,3650.1,3650.0,0.1505]
[1753319145560,3.0,3650.1,3650.0,0.1505]
[1753319145769,7.219,3650.1,3650.0,6.95916815]
[1753319146130,7.219,3650.1,3650.0,7.92906616]
[1753319147785,3.0,3650.1,3650.0,7.92906616]
[1753319147937,7.219,3650.1,3650.0,7.92906616]
[1753319148134,3.0,3650.1,3650.0,7.92906616]
[1753319148369,7.218,3650.1,3650.0,7.92906616]
[1753319149033,7.218,3650.1,3650.0,5.18934014]
[1753319149238,7.218,3650.1,3650.0,0.9778]
[1753319149479,7.218,3650.1,3650.0,3.71752602]
[1753319150040,7.218,3650.1,3650.0,3.56802602]
[1753319150967,7.218,3650.1,3650.0,0.8283]
[1753319152077,7.218,3650.1,3650.0,0.001]
[1753319152388,10.40995096,3650.1,3650.0,0.001]
[1753319152589,10.95995096,3650.1,3650.0,0.001]
[1753319152894,40.95995096,3650.1,3650.0,0.001]
[1753319153251,10.95995096,3650.1,3650.0,0.001]
[1753319153589,40.95995096,3650.1,3650.0,0.001]
[1753319153750,10.95995096,3650.1,3650.0,0.001]
[1753319155700,25.45995096,3650.1,3650.0,0.001]
[1753319157078,17.5,3650.1,3650.0,0.001]
[1753319157278,7.217,3650.1,3650.0,0.001]
[1753319160451,7.217,3650.1,3650.0,2.74072602]
[1753319160452,3.0,3650.1,3650.0,2.74072602]
[1753319160656,7.217,3650.1,3650.0,3.84499407]
[1753319160958,7.3538,3650.1,3650.0,3.84499407]
[1753319161595,7.3538,3650.1,3650.0,3.69549407]
[1753319165606,7.3538,3650.1,3650.0,0.95576805]
[1753319168411,0.1368,3650.1,3650.0,3.69549407]
[1753319168616,4.215,3650.1,3650.0,4.79855596]
[1753319168818,4.215,3650.1,3650.0,8.0269362]
[1753319169125,0.1368,3650.6,3650.4,2.73939562]
[1753319169414,7.215,3650.5,3650.4,2.73939562]
[1753319170021,3.0,3650.4,3650.1,2.73963774]
[1753319170221,4.215,3650.3,3650.2,3.5422607]
[1753319172588,4.215,3650.3,3650.2,4.3337607]
[1753319172918,4.215,3650.3,3650.2,4.4832607]
[1753319173119,0.002,3650.9,3650.6,0.7915]
[1753319173326,0.002,3650.9,3650.8,2.73912567]
[1753319173519,0.002,3650.9,3650.8,4.50027364]
[1753319173818,0.002,3650.9,3650.8,4.78657364]
[1753319175030,0.002,3650.9,3650.8,0.81]
[1753319175589,4.216,3650.9,3650.8,3.54912567]
[1753319176304,4.216,3650.9,3650.8,0.81]
[1753319179034,4.216,3650.9,3650.6,0.953]
[1753319179234,4.216,3650.9,3650.6,3.69223103]
[1753319179423,4.216,3650.9,3650.7,2.73916523]
[1753319180328,4.216,3650.9,3650.8,2.73912567]
[1753319182412,4.216,3650.9,3650.8,2.88862567]
[1753319182813,4.216,3650.9,3650.8,2.73912567]
[1753319187147,0.002,3650.9,3650.8,2.73912567]
[1753319189131,0.002,3650.9,3650.7,2.73917843]
[1753319189343,0.002,3650.9,3650.8,2.73912567]
[1753319191034,0.4623,3650.9,3650.8,2.73912567]
[1753319191447,0.002,3650.9,3650.8,2.73912567]
[1753319191960,4.213,3650.9,3650.8,2.73912567]
[1753319192352,4.213,3650.9,3650.7,2.73917892]
[1753319192859,4.213,3650.9,3650.6,0.1368]
[1753319193152,4.3498,3650.9,3650.6,2.73924203]
[1753319193351,4.8101,3650.9,3650.5,2.73931951]
[1753319193552,4.8101,3650.9,3650.4,2.73940247]
[1753319193744,4.8101,3650.9,3650.3,3.99474213]
[1753319193745,0.4603,3650.8,3650.3,6.73422695]
[1753319193934,0.4603,3650.8,3650.3,6.73422863]
[1753319194132,4.3498,3650.9,3650.4,2.73937655]
[1753319194350,0.4603,3650.7,3650.3,3.99474213]
[1753319194540,0.4603,3650.6,3650.3,3.24164213]
[1753319194856,4.6703,3650.6,3650.3,3.24164213]
[1753319195154,0.4603,3650.5,3650.3,5.98112181]
[1753319195358,0.4603,3650.5,3650.4,2.73942581]
[1753319195656,4.21,3650.6,3650.5,2.73935077]
[1753319201975,4.6793,3650.6,3650.5,2.73935077]
[1753319202280,4.6793,3650.6,3650.2,0.1368]
[1753319202281,4.21,3650.6,3650.2,0.1368]
[1753319202576,0.4693,3650.5,3650.3,2.73944883]
[1753319203655,4.21,3650.6,3650.5,2.73935077]
[1753319203861,0.1388,3650.9,3650.8,2.73912567]
[1753319204065,7.211,3650.9,3650.8,2.73912567]
[1753319204561,3.002,3650.9,3650.8,2.73912567]
[1753319204902,7.211,3650.9,3650.8,2.73912567]
[1753319205507,3.002,3650.9,3650.8,2.73912567]
[1753319205689,0.002,3650.9,3650.8,4.0040369]
[1753319205889,0.002,3650.9,3650.8,4.7776369]
[1753319206709,1e-08,3650.9,3650.8,4.7776369]
[1753319206917,0.002,3651.6,3651.5,3.53650057]
[1753319207105,0.002,3651.6,3651.5,7.26859276]
[1753319207307,0.002,3651.6,3651.5,7.41809276]
[1753319207509,0.002,3651.6,3651.5,7.26859276]
[1753319208838,0.002,3651.6,3651.5,11.62609276]
[1753319213297,0.034016,3651.9,3651.5,11.62609276]
[1753319213298,0.034016,3651.9,3651.6,2.73852557]
[1753319213496,0.034016,3651.9,3651.6,5.42728818]
[1753319213693,0.034016,3651.9,3651.6,5.2645563]
[1753319213889,0.034016,3651.9,3651.6,5.42728818]
[1753319214123,0.034016,3651.9,3651.6,5.4140563]
[1753319215027,0.034016,3651.9,3651.6,9.4705563]
[1753319215893,0.034016,3651.9,3651.6,9.6200563]
[1753319216104,0.034016,3651.9,3651.6,5.4140563]
[1753319216327,0.034016,3651.9,3651.6,9.6200563]
[1753319216724,0.034016,3651.9,3651.6,5.2645563]
[1753319216901,0.034016,3651.9,3651.6,9.4705563]
[1753319220300,0.4713,3651.7,3651.6,2.73852557]
[1753319220495,0.4713,3651.7,3651.6,6.94352557]
[1753319220702,0.4713,3651.7,3651.6,2.73852557]
[1753319221235,0.4713,3651.7,3651.4,2.73862079]
[1753319221742,0.4713,3651.7,3651.2,4.3418]
[1753319221904,0.002,3651.7,3651.6,2.73852557]
[1753319222527,0.4713,3651.7,3651.6,2.73852557]
[1753319224241,0.4713,3651.7,3651.5,2.73857315]
[1753319224609,0.002,3651.7,3651.6,2.73852557]
[1753319225342,0.4713,3651.7,3651.6,2.73852557]
[1753319225656,0.4713,3651.7,3651.5,2.73859237]
[1753319225945,0.4693,3651.6,3651.4,2.73865548]
[1753319226306,0.4693,3651.6,3651.5,2.73860057]
[1753319226541,0.4693,3651.6,3651.4,2.73862563]
[1753319227442,0.4693,3651.5,3650.9,0.001]
[1753319227741,0.1368,3651.3,3650.9,0.001]
[1753319228044,3.1368,3651.3,3650.9,0.001]
[1753319228347,0.7733,3651.1,3650.9,0.001]
[1753319228751,0.4693,3651.0,3650.9,0.001]
[1753319228953,7.02037562,3651.0,3650.9,0.001]
[1753319229165,3.0,3650.7,3650.0,0.001]
[1753319229368,0.8223,3650.8,3650.0,0.001]
[1753319229369,3.8223,3650.5,3650.0,0.001]
[1753319229667,0.1368,3650.4,3650.0,0.001]
[1753319229835,0.5961,3650.4,3650.0,0.001]
[1753319230249,0.1368,3650.4,3650.0,0.001]
[1753319230568,0.4593,3650.3,3650.0,0.001]
[1753319233061,3.1368,3650.4,3650.0,2.74070443]
[1753319233273,0.4593,3650.2,3650.0,2.74070443]
[1753319234370,0.4593,3650.2,3650.0,0.001]
[1753319234578,1.0093,3650.2,3649.7,0.001]
[1753319234777,7.08747615,3649.8,3649.7,0.001]
[1753319235270,22.04677615,3649.8,3649.7,0.001]
[1753319235437,7.06745122,3649.7,3649.6,0.001]
[1753319235634,7.52675122,3649.7,3649.6,0.001]
[1753319235834,11.73175122,3649.7,3649.6,0.001]
[1753319236236,41.73175122,3649.7,3649.6,0.001]
[1753319238862,56.23175122,3649.7,3649.6,0.001]
[1753319240163,22.02675122,3649.7,3649.6,0.001]
[1753319240347,26.23175122,3649.7,3649.6,0.001]
[1753319243191,56.23175122,3649.7,3649.6,0.001]
[1753319243685,22.02675122,3649.7,3649.6,0.001]
[1753319243883,26.23275122,3649.7,3649.6,0.001]
[1753319246493,56.23275122,3649.7,3649.6,0.001]
[1753319246695,26.23275122,3649.7,3649.6,0.001]
[1753319246998,56.23275122,3649.7,3649.6,0.001]
[1753319247670,26.23275122,3649.7,3649.6,0.001]
[1753319247870,36.29017646,3649.4,3649.3,0.001]
[1753319248175,36.29017646,3649.4,3648.7,0.001]
[1753319248176,37.12055155,3649.3,3648.7,0.001]
[1753319248388,37.57985155,3649.3,3648.7,0.001]
[1753319250177,41.78585155,3649.3,3648.7,0.001]
[1753319250385,41.99186429,3649.3,3648.7,0.001]
[1753319250798,37.78586429,3649.3,3648.7,0.001]
[1753319251108,41.99286429,3649.3,3648.7,0.001]
[1753319253769,11.99286429,3649.3,3648.7,0.001]
[1753319253972,41.99286429,3649.3,3648.7,0.001]
[1753319254169,37.05532664,3649.2,3648.7,0.001]
[1753319254386,6.29040174,3649.1,3649.0,1e-08]
[1753319254594,41.76980174,3649.1,3649.0,1e-08]
[1753319254798,11.76980174,3649.1,3649.0,1e-08]
[1753319255106,41.76980174,3649.1,3649.0,1e-08]
[1753319256898,11.76980174,3649.1,3649.0,1e-08]
[1753319257199,41.76980174,3649.1,3649.0,1e-08]
[1753319258187,11.76980174,3649.1,3649.0,1e-08]
[1753319258589,41.76980174,3649.1,3649.0,1e-08]
[1753319258771,37.56280174,3649.1,3649.0,1e-08]
[1753319259102,41.76980174,3649.1,3649.0,1e-08]
[1753319261090,37.56280174,3649.1,3649.0,1e-08]
[1753319261404,41.76980174,3649.1,3649.0,1e-08]
[1753319262474,42.35916113,3649.1,3649.0,1e-08]
[1753319263774,38.15216113,3649.1,3649.0,1e-08]
[1753319263970,42.35916113,3649.1,3649.0,1e-08]
[1753319266991,42.3602431,3649.1,3649.0,1e-08]
[1753319267302,38.1532431,3649.1,3649.0,1e-08]
[1753319267517,42.3602431,3649.1,3649.0,1e-08]
[1753319268911,42.3602431,3649.1,3648.7,0.001]
[1753319268912,7.20277684,3649.0,3648.9,1e-08]
[1753319269108,37.7932182,3649.0,3648.9,1e-08]
[1753319269287,37.06612705,3648.8,3648.7,0.001]
[1753319269480,0.7755,3648.5,3648.3,0.001]
[1753319269812,40.49792752,3648.4,3648.3,0.001]
[1753319270104,41.54236674,3648.4,3648.3,0.001]
[1753319270912,38.07391577,3648.4,3648.3,0.001]
[1753319271091,42.28091577,3648.4,3648.3,0.001]
[1753319272000,56.78091577,3648.4,3648.3,0.001]
[1753319272921,57.57471577,3648.4,3648.3,0.001]
[1753319273103,56.83616674,3648.4,3648.3,0.001]
[1753319274824,56.83616674,3648.4,3648.3,1e-08]
[1753319276124,26.83616674,3648.4,3648.3,1e-08]
[1753319276329,56.83616674,3648.4,3648.3,1e-08]
[1753319278197,52.62916674,3648.4,3648.3,1e-08]
[1753319278398,56.83616674,3648.4,3648.3,1e-08]
[1753319279432,57.57494616,3648.4,3648.3,1e-08]
[1753319280027,53.36794616,3648.4,3648.3,1e-08]
[1753319280333,21.38176674,3648.4,3648.3,1e-08]
[1753319280543,10.53876674,3648.4,3648.3,1e-08]
[1753319280849,40.99245418,3648.4,3648.3,1e-08]
[1753319281000,41.54245418,3648.4,3648.3,1e-08]
[1753319281731,42.34215418,3648.4,3648.3,1e-08]
[1753319282803,56.84215418,3648.4,3648.3,1e-08]
[1753319283908,26.84215418,3648.4,3648.3,1e-08]
[1753319284108,56.84215418,3648.4,3648.3,1e-08]
[1753319285142,57.5808125,3648.4,3648.3,1e-08]
[1753319287540,56.84215418,3648.4,3648.3,1e-08]
[1753319287743,57.5809293,3648.4,3648.3,1e-08]
[1753319288129,56.84215418,3648.4,3648.3,1e-08]
[1753319289239,56.84215418,3648.4,3648.2,1e-08]
[1753319289240,37.19650265,3648.3,3648.2,1e-08]
[1753319289422,42.73224235,3648.3,3648.2,1e-08]
[1753319289632,43.17514235,3648.3,3648.2,1e-08]
[1753319290824,42.43632931,3648.3,3648.2,1e-08]
[1753319291942,41.66762931,3648.3,3648.2,1e-08]
[1753319292345,37.01872931,3648.3,3648.2,1e-08]
[1753319292522,41.22472931,3648.3,3648.2,1e-08]
[1753319292716,37.01872931,3648.3,3648.2,1e-08]
[1753319292917,41.22472931,3648.3,3648.2,1e-08]
[1753319293446,41.66762931,3648.3,3648.2,1e-08]
[1753319295246,56.16762931,3648.3,3648.2,1e-08]
[1753319297425,56.9064728,3648.3,3648.2,1e-08]
[1753319298066,56.16762931,3648.3,3648.2,1e-08]
[1753319298540,57.1520127,3648.3,3648.2,1e-08]
[1753319298856,56.16762931,3648.3,3648.2,1e-08]
[1753319300422,56.1690192,3648.3,3648.2,1e-08]
[1753319303450,26.1690192,3648.3,3648.2,1e-08]
[1753319303850,56.1690192,3648.3,3648.2,1e-08]
[1753319306245,62.7580192,3648.3,3648.2,1e-08]
[1753319308798,32.7580192,3648.3,3648.2,1e-08]
[1753319309006,62.7580192,3648.3,3648.2,1e-08]
[1753319310409,62.7570192,3648.3,3648.2,1e-08]
[1753319310572,62.3141192,3648.3,3648.2,1e-08]
[1753319312190,62.7570192,3648.3,3648.2,1e-08]
[1753319312895,63.5094192,3648.3,3648.2,1e-08]
[1753319316326,62.7570192,3648.3,3648.2,1e-08]
[1753319316897,66.98304472,3648.3,3648.2,1e-08]
[1753319317102,65.99866133,3648.3,3648.2,1e-08]
[1753319318334,66.76956133,3648.3,3648.2,1e-08]
[1753319318729,63.5279192,3648.3,3648.2,1e-08]
[1753319320002,63.5279192,3648.3,3647.5,0.001]
[1753319320003,6.29152867,3647.6,3647.5,0.001]
[1753319320319,40.49552867,3647.6,3647.5,0.001]
[1753319320515,41.08784522,3647.6,3647.5,0.001]
[1753319321429,41.22332314,3647.6,3647.5,0.001]
[1753319323050,41.69482314,3647.6,3647.5,0.001]
[1753319323203,11.69482314,3647.6,3647.5,0.001]
[1753319323547,41.69482314,3647.6,3647.5,0.001]
[1753319323714,56.19482314,3647.6,3647.5,0.001]
[1753319325553,36.88384522,3647.6,3647.5,0.777]
[1753319325716,41.08684522,3647.6,3647.5,0.777]
[1753319325914,41.08684522,3647.6,3647.5,0.001]
[1753319326225,41.55834522,3647.6,3647.5,0.001]
[1753319326945,41.69438359,3647.6,3647.5,0.001]
[1753319329811,56.19438359,3647.6,3647.5,0.001]
[1753319330629,55.72288359,3647.6,3647.5,0.001]
[1753319331056,56.19438359,3647.6,3647.5,0.001]
[1753319331262,57.74501754,3647.6,3647.5,0.001]
[1753319332526,26.93491754,3647.6,3647.5,0.001]
[1753319332726,56.93491754,3647.6,3647.5,0.001]
[1753319333426,56.46341754,3647.6,3647.5,0.001]
[1753319333924,56.93491754,3647.6,3647.5,0.001]
[1753319335650,26.93491754,3647.6,3647.5,0.001]
[1753319336037,56.19438359,3647.6,3647.5,0.001]
[1753319337531,56.98958359,3647.6,3647.5,0.001]
[1753319338270,57.73011754,3647.6,3647.5,1e-08]
[1753319339768,56.98958359,3647.6,3647.5,1e-08]
[1753319340756,53.20326889,3647.6,3647.5,1e-08]
[1753319341070,57.40626889,3647.6,3647.5,1e-08]
[1753319341501,57.40626889,3647.6,3646.8,0.001]
[1753319341502,2.74205489,3646.9,3646.8,0.001]
[1753319341633,2.74205489,3646.9,3645.8,0.7953]
[1753319341634,35.74258131,3646.2,3645.8,0.7953]
[1753319341978,40.91226661,3646.2,3645.8,0.7953]
[1753319342264,56.00393239,3646.2,3645.8,0.7953]
[1753319343444,55.41226661,3646.2,3645.8,0.7953]
[1753319344182,3.0,3646.2,3646.1,0.7961]
[1753319344389,9.94558131,3646.2,3646.1,0.7961]
[1753319344744,9.94558131,3646.2,3646.1,0.04]
[1753319345149,39.94558131,3646.2,3646.1,0.04]
[1753319345447,9.94558131,3646.2,3646.1,0.04]
[1753319345675,3.0,3646.2,3646.1,0.1915]
[1753319345866,3.0,3646.2,3646.1,0.9492]
[1753319346063,7.203,3646.2,3646.1,0.9492]
[1753319346954,3.0,3646.2,3646.1,0.9492]
[1753319347157,7.203,3646.2,3646.1,4.06116373]
[1753319347356,3.0,3646.2,3646.1,4.06116373]
[1753319347562,7.203,3646.2,3646.1,4.06116373]
[1753319348177,6.59,3646.4,3646.3,2.7425061]
[1753319348393,10.793,3646.4,3646.3,7.65447873]
[1753319348761,0.1368,3647.1,3647.0,3.5179797]
[1753319349079,14.5,3648.0,3647.0,3.5179797]
[1753319349080,0.1368,3647.4,3647.2,3.51782579]
[1753319349280,4.203,3647.3,3647.2,3.51782579]
[1753319349490,0.5906668,3648.0,3647.4,0.8278]
[1753319349699,0.1368,3647.7,3647.5,0.8278]
[1753319349991,6.591,3648.1,3647.7,0.8278]
[1753319350160,4.3388,3648.0,3647.9,2.74130321]
[1753319350548,4.3388,3648.0,3647.7,0.8278]
[1753319350549,3.0,3647.9,3647.7,0.8278]
[1753319350746,4.202,3647.8,3647.7,0.8278]
[1753319350984,4.202,3647.8,3647.7,3.56925351]
[1753319351388,4.202,3647.8,3647.7,0.8278]
[1753319351587,4.202,3647.8,3647.7,0.9793]
[1753319351756,3.1368,3648.0,3647.7,0.9793]
[1753319351957,4.202,3647.9,3647.8,2.89287836]
[1753319352590,4.202,3647.9,3647.8,0.1515]
[1753319353587,3.1368,3648.0,3647.9,2.74130321]
[1753319353786,3.1368,3648.0,3647.9,3.26486353]
[1753319354098,3.1368,3648.0,3647.9,4.05166353]
[1753319354099,7.201,3648.0,3647.9,4.05166353]
[1753319354592,7.201,3648.0,3647.9,3.67960321]
[1753319354896,3.0,3648.0,3647.9,3.67960321]
[1753319355082,7.201,3648.0,3647.9,3.67960321]
[1753319355659,0.002,3648.1,3648.0,3.53332807]